[Event "Titled Tuesday Blitz May 17 Late 2022"]
[White "Demchenko, Anton"]
[Black "Souleidis, Georgios"]
[WhiteFideId "4160258"]
[BlackFideId "4206827"]
[WhiteElo "2539"]
[BlackElo "2401"]
[Result "1-0"]
[Round "08"]
[TimeControl "180+1"]
[Date "2022.05.17"]
[WhiteClock "0:00:51"]
[BlackClock "0:00:05"]

1. e4 {[%clk 0:03:00]}  e5 {[%clk 0:02:59]} 2. Nf3 {[%clk 0:03:01]}  d6 {[%clk 0:02:59]} 3. d4 {[%clk 0:02:59]}  Bg4 {[%clk 0:02:59]} 4. dxe5 {[%clk 0:02:53]}  Nd7 {[%clk 0:03:00]} 5. h3 {[%clk 0:02:50]}  Bh5 {[%clk 0:02:59]} 6. Nc3 {[%clk 0:02:35]}  dxe5 {[%clk 0:02:57]} 7. Bc4 {[%clk 0:02:31]}  Bc5 {[%clk 0:02:57]} 8. Qe2 {[%clk 0:02:27]}  Ngf6 {[%clk 0:02:57]} 9. g4 {[%clk 0:02:27]}  Bg6 {[%clk 0:02:57]} 10. Bg5 {[%clk 0:02:24]}  c6 {[%clk 0:02:58]} 11. O-O-O {[%clk 0:02:24]}  Qc7 {[%clk 0:02:52]} 12. Nh4 {[%clk 0:02:19]}  O-O {[%clk 0:02:44]} 13. Nxg6 {[%clk 0:02:17]}  hxg6 {[%clk 0:02:44]} 14. a4 {[%clk 0:02:10]}  a6 {[%clk 0:02:37]} 15. h4 {[%clk 0:02:09]}  b5 {[%clk 0:02:37]} 16. Bb3 {[%clk 0:02:10]}  Bd4 {[%clk 0:02:32]} 17. h5 {[%clk 0:02:08]}  Nc5 {[%clk 0:02:23]} 18. Ba2 {[%clk 0:01:42]}  b4 {[%clk 0:02:02]} 19. hxg6 {[%clk 0:01:42]}  b3 {[%clk 0:02:02]} 20. cxb3 {[%clk 0:01:38]}  Qb7 {[%clk 0:00:39]} 21. f3 {[%clk 0:01:22]}  Nxb3+ {[%clk 0:00:20]} 22. Kc2 {[%clk 0:01:11]}  Rab8 {[%clk 0:00:17]} 23. Bxf6 {[%clk 0:01:05]}  gxf6 {[%clk 0:00:06]} 24. Rh8+ {[%clk 0:01:04]}  Kg7 {[%clk 0:00:07]} 25. Rh7+ {[%clk 0:01:01]}  Kg8 {[%clk 0:00:05]} 26. Qh2 {[%clk 0:00:50]}  Na1+ {[%clk 0:00:05]} 27. Kd3 {[%clk 0:00:51]} 1-0


[Site "https://www.chess.com"]

[Event "Titled Tuesday Blitz May 17 Late 2022"]
[White "Donchenko, Alexander"]
[Black "Andreikin, Dmitry"]
[WhiteFideId "24603295"]
[BlackFideId "4158814"]
[WhiteElo "2572"]
[BlackElo "2736"]
[Result "0-1"]
[Round "08"]
[TimeControl "180+1"]
[Date "2022.05.17"]
[WhiteClock "0:01:45"]
[BlackClock "0:01:38"]

1. d4 {[%clk 0:03:00]}  Nf6 {[%clk 0:03:00]} 2. Nf3 {[%clk 0:03:01]}  b6 {[%clk 0:02:59]} 3. g3 {[%clk 0:03:01]}  Bb7 {[%clk 0:02:59]} 4. Bg2 {[%clk 0:03:01]}  c5 {[%clk 0:02:55]} 5. dxc5 {[%clk 0:02:54]}  bxc5 {[%clk 0:02:55]} 6. c4 {[%clk 0:02:55]}  g6 {[%clk 0:02:54]} 7. b3 {[%clk 0:02:55]}  Bg7 {[%clk 0:02:54]} 8. Bb2 {[%clk 0:02:55]}  O-O {[%clk 0:02:55]} 9. O-O {[%clk 0:02:55]}  d6 {[%clk 0:02:55]} 10. Nc3 {[%clk 0:02:55]}  Nbd7 {[%clk 0:02:50]} 11. Qc2 {[%clk 0:02:55]}  a5 {[%clk 0:02:50]} 12. Rad1 {[%clk 0:02:51]}  Ne8 {[%clk 0:02:47]} 13. e4 {[%clk 0:02:46]}  Nc7 {[%clk 0:02:47]} 14. Rfe1 {[%clk 0:02:44]}  Ne6 {[%clk 0:02:43]} 15. e5 {[%clk 0:02:32]}  Bxf3 {[%clk 0:02:41]} 16. Bxf3 {[%clk 0:02:30]}  Nd4 {[%clk 0:02:36]} 17. Rxd4 {[%clk 0:02:20]}  cxd4 {[%clk 0:02:36]} 18. exd6 {[%clk 0:02:21]}  exd6 {[%clk 0:02:12]} 19. Nb5 {[%clk 0:02:21]}  d3 {[%clk 0:02:08]} 20. Qd2 {[%clk 0:02:20]}  Bxb2 {[%clk 0:02:01]} 21. Bxa8 {[%clk 0:02:05]}  Qxa8 {[%clk 0:02:02]} 22. Qxb2 {[%clk 0:02:05]}  Ne5 {[%clk 0:02:03]} 23. Nd4 {[%clk 0:02:06]}  Qa7 {[%clk 0:02:03]} 24. Re3 {[%clk 0:02:05]}  a4 {[%clk 0:01:49]} 25. Kg2 {[%clk 0:02:02]}  Qb7+ {[%clk 0:01:45]} 26. Nf3 {[%clk 0:01:46]}  Nxc4 {[%clk 0:01:44]} 27. Qd4 {[%clk 0:01:44]}  Nxe3+ {[%clk 0:01:43]} 28. Qxe3 {[%clk 0:01:45]}  axb3 {[%clk 0:01:43]} 29. axb3 {[%clk 0:01:46]}  Qxb3 {[%clk 0:01:42]} 30. Qh6 {[%clk 0:01:46]}  Qd5 {[%clk 0:01:41]} 31. h4 {[%clk 0:01:45]}  d2 {[%clk 0:01:38]} 0-1


[Site "https://www.chess.com"]

[Event "Titled Tuesday Blitz May 17 Late 2022"]
[White "Dubov, Daniil"]
[Black "Rustemov, Alexander"]
[WhiteFideId "24126055"]
[BlackFideId "4119002"]
[WhiteElo "2791"]
[BlackElo "2802"]
[Result "1-0"]
[Round "08"]
[TimeControl "180+1"]
[Date "2022.05.17"]
[WhiteClock "0:01:52"]
[BlackClock "0:00:06"]

1. d4 {[%clk 0:03:00]}  d5 {[%clk 0:02:55]} 2. Nf3 {[%clk 0:03:01]}  Nf6 {[%clk 0:02:54]} 3. c4 {[%clk 0:03:02]}  c6 {[%clk 0:02:49]} 4. Nc3 {[%clk 0:03:01]}  a6 {[%clk 0:02:47]} 5. g3 {[%clk 0:02:59]}  b5 {[%clk 0:02:44]} 6. c5 {[%clk 0:02:58]}  g6 {[%clk 0:02:41]} 7. Bg2 {[%clk 0:02:58]}  Bg7 {[%clk 0:02:41]} 8. O-O {[%clk 0:02:58]}  O-O {[%clk 0:02:42]} 9. Ne5 {[%clk 0:02:57]}  a5 {[%clk 0:02:38]} 10. a3 {[%clk 0:02:51]}  Ng4 {[%clk 0:02:26]} 11. f4 {[%clk 0:02:49]}  Nxe5 {[%clk 0:02:18]} 12. fxe5 {[%clk 0:02:45]}  f6 {[%clk 0:02:12]} 13. exf6 {[%clk 0:02:41]}  exf6 {[%clk 0:02:09]} 14. e4 {[%clk 0:02:39]}  dxe4 {[%clk 0:02:09]} 15. Nxe4 {[%clk 0:02:40]}  Be6 {[%clk 0:01:59]} 16. Nd6 {[%clk 0:02:38]}  Qd7 {[%clk 0:01:04]} 17. Re1 {[%clk 0:02:28]}  Bd5 {[%clk 0:00:46]} 18. Bxd5+ {[%clk 0:02:20]}  cxd5 {[%clk 0:00:47]} 19. Qf3 {[%clk 0:02:07]}  Qc6 {[%clk 0:00:42]} 20. Bf4 {[%clk 0:02:06]}  Nd7 {[%clk 0:00:38]} 21. Re7 {[%clk 0:02:04]}  f5 {[%clk 0:00:37]} 22. Qe3 {[%clk 0:02:02]}  Kh8 {[%clk 0:00:06]} 23. Rxg7 {[%clk 0:01:56]}  Kxg7 {[%clk 0:00:06]} 24. Qe7+ {[%clk 0:01:57]}  Kg8 {[%clk 0:00:06]} 25. Bh6 {[%clk 0:01:52]} 1-0


[Site "https://www.chess.com"]

[Event "Titled Tuesday Blitz May 17 Late 2022"]
[White "Indjic, Aleksandar"]
[Black "Bryakin, Mikhail"]
[WhiteFideId "911925"]
[BlackFideId "4165314"]
[WhiteElo "2616"]
[BlackElo "2417"]
[Result "1-0"]
[Round "08"]
[TimeControl "180+1"]
[Date "2022.05.17"]
[WhiteClock "0:00:13"]
[BlackClock "0:00:32"]

1. e4 {[%clk 0:03:00]}  Nf6 {[%clk 0:02:54]} 2. e5 {[%clk 0:02:59]}  Ng8 {[%clk 0:02:54]} 3. d4 {[%clk 0:02:58]}  d6 {[%clk 0:02:54]} 4. Nf3 {[%clk 0:02:58]}  g6 {[%clk 0:02:55]} 5. Bc4 {[%clk 0:02:55]}  Bg7 {[%clk 0:02:55]} 6. Qe2 {[%clk 0:02:53]}  Nc6 {[%clk 0:02:54]} 7. Nbd2 {[%clk 0:02:46]}  d5 {[%clk 0:02:54]} 8. Bb5 {[%clk 0:02:42]}  Bd7 {[%clk 0:02:51]} 9. c3 {[%clk 0:02:35]}  a6 {[%clk 0:02:51]} 10. Bd3 {[%clk 0:02:32]}  Bg4 {[%clk 0:02:50]} 11. h3 {[%clk 0:02:30]}  Bxf3 {[%clk 0:02:50]} 12. Nxf3 {[%clk 0:02:31]}  Qd7 {[%clk 0:02:46]} 13. h4 {[%clk 0:02:30]}  h6 {[%clk 0:02:45]} 14. b4 {[%clk 0:02:27]}  e6 {[%clk 0:02:31]} 15. a4 {[%clk 0:02:25]}  Nge7 {[%clk 0:02:31]} 16. Bf4 {[%clk 0:02:22]}  a5 {[%clk 0:02:30]} 17. b5 {[%clk 0:02:21]}  Na7 {[%clk 0:02:30]} 18. O-O {[%clk 0:02:18]}  Nac8 {[%clk 0:02:31]} 19. h5 {[%clk 0:02:06]}  Nb6 {[%clk 0:02:26]} 20. Nh2 {[%clk 0:02:03]}  O-O-O {[%clk 0:02:24]} 21. Bd2 {[%clk 0:01:59]}  Rdg8 {[%clk 0:02:20]} 22. f4 {[%clk 0:01:57]}  Nf5 {[%clk 0:02:16]} 23. Rf3 {[%clk 0:01:51]}  gxh5 {[%clk 0:02:13]} 24. Rh3 {[%clk 0:01:50]}  Bf8 {[%clk 0:02:01]} 25. Bxf5 {[%clk 0:01:48]}  exf5 {[%clk 0:02:00]} 26. Rxh5 {[%clk 0:01:47]}  Nc4 {[%clk 0:01:54]} 27. Be1 {[%clk 0:01:44]}  Rg6 {[%clk 0:01:35]} 28. Qd3 {[%clk 0:01:43]}  Rhg8 {[%clk 0:01:36]} 29. Ra2 {[%clk 0:01:43]}  R8g7 {[%clk 0:01:03]} 30. Re2 {[%clk 0:01:41]}  c6 {[%clk 0:00:59]} 31. bxc6 {[%clk 0:01:39]}  Qxc6 {[%clk 0:01:00]} 32. Qxf5+ {[%clk 0:01:37]}  Kb8 {[%clk 0:01:00]} 33. Qc2 {[%clk 0:01:32]}  Ne3 {[%clk 0:00:56]} 34. Rxe3 {[%clk 0:01:30]}  Rxg2+ {[%clk 0:00:57]} 35. Qxg2 {[%clk 0:01:23]}  Rxg2+ {[%clk 0:00:58]} 36. Kxg2 {[%clk 0:01:23]}  Qg6+ {[%clk 0:00:58]} 37. Bg3 {[%clk 0:01:21]}  Qxh5 {[%clk 0:00:59]} 38. f5 {[%clk 0:01:14]}  Kc8 {[%clk 0:00:58]} 39. e6 {[%clk 0:00:57]}  fxe6 {[%clk 0:00:58]} 40. fxe6 {[%clk 0:00:57]}  Be7 {[%clk 0:00:59]} 41. Re5 {[%clk 0:00:56]}  Qg6 {[%clk 0:00:54]} 42. Nf3 {[%clk 0:00:55]}  Qc2+ {[%clk 0:00:54]} 43. Bf2 {[%clk 0:00:51]}  Qxc3 {[%clk 0:00:54]} 44. Rxd5 {[%clk 0:00:51]}  Qc4 {[%clk 0:00:51]} 45. Rxa5 {[%clk 0:00:45]}  Qxe6 {[%clk 0:00:50]} 46. Ra8+ {[%clk 0:00:45]}  Kc7 {[%clk 0:00:46]} 47. Bg3+ {[%clk 0:00:37]}  Bd6 {[%clk 0:00:46]} 48. Bxd6+ {[%clk 0:00:34]}  Qxd6 {[%clk 0:00:47]} 49. a5 {[%clk 0:00:33]}  Qg6+ {[%clk 0:00:45]} 50. Kf2 {[%clk 0:00:32]}  h5 {[%clk 0:00:46]} 51. Rh8 {[%clk 0:00:28]}  Qc2+ {[%clk 0:00:45]} 52. Kg3 {[%clk 0:00:27]}  Qg6+ {[%clk 0:00:44]} 53. Kf2 {[%clk 0:00:27]}  Qg4 {[%clk 0:00:41]} 54. Rh6 {[%clk 0:00:23]}  Kb8 {[%clk 0:00:41]} 55. Rh7 {[%clk 0:00:21]}  Ka7 {[%clk 0:00:41]} 56. Rh6 {[%clk 0:00:21]}  Qf5 {[%clk 0:00:41]} 57. Ke3 {[%clk 0:00:21]}  Qxa5 {[%clk 0:00:40]} 58. Ke4 {[%clk 0:00:20]}  Qb5 {[%clk 0:00:34]} 59. d5 {[%clk 0:00:19]}  Qe2+ {[%clk 0:00:33]} 60. Kf4 {[%clk 0:00:20]}  Qe8 {[%clk 0:00:33]} 61. Re6 {[%clk 0:00:16]}  Qf7+ {[%clk 0:00:32]} 62. Ke4 {[%clk 0:00:17]}  h4 {[%clk 0:00:30]} 63. Ng5 {[%clk 0:00:14]}  b5 {[%clk 0:00:31]} 64. Nxf7 {[%clk 0:00:14]}  h3 {[%clk 0:00:32]} 65. Rh6 {[%clk 0:00:13]} 1-0


[Site "https://www.chess.com"]

[Event "Titled Tuesday Blitz May 17 Late 2022"]
[White "Ivanisevic, Ivan"]
[Black "Svane, Frederik"]
[WhiteFideId "912417"]
[BlackFideId "12923044"]
[WhiteElo "2495"]
[BlackElo "2459"]
[Result "1-0"]
[Round "08"]
[TimeControl "180+1"]
[Date "2022.05.17"]
[WhiteClock "0:00:11"]
[BlackClock "0:00:08"]

1. d4 {[%clk 0:03:00]}  Nf6 {[%clk 0:03:00]} 2. c4 {[%clk 0:03:01]}  e6 {[%clk 0:03:00]} 3. g3 {[%clk 0:03:00]}  d5 {[%clk 0:03:00]} 4. Bg2 {[%clk 0:03:01]}  Bb4+ {[%clk 0:03:01]} 5. Bd2 {[%clk 0:02:59]}  Be7 {[%clk 0:03:00]} 6. Nf3 {[%clk 0:02:44]}  O-O {[%clk 0:03:01]} 7. Qc2 {[%clk 0:02:44]}  c6 {[%clk 0:03:01]} 8. Bf4 {[%clk 0:02:35]}  Nbd7 {[%clk 0:02:57]} 9. Nbd2 {[%clk 0:02:34]}  b6 {[%clk 0:02:55]} 10. h4 {[%clk 0:02:34]}  Bb7 {[%clk 0:02:53]} 11. e4 {[%clk 0:02:20]}  dxe4 {[%clk 0:02:46]} 12. Ng5 {[%clk 0:02:18]}  c5 {[%clk 0:02:39]} 13. Ndxe4 {[%clk 0:02:13]}  Nxe4 {[%clk 0:02:34]} 14. Nxe4 {[%clk 0:02:02]}  cxd4 {[%clk 0:02:34]} 15. Ng5 {[%clk 0:01:52]}  g6 {[%clk 0:01:47]} 16. Bxb7 {[%clk 0:01:50]}  e5 {[%clk 0:01:48]} 17. Bd2 {[%clk 0:01:47]}  Nc5 {[%clk 0:01:48]} 18. Bd5 {[%clk 0:01:44]}  Kg7 {[%clk 0:01:43]} 19. Ne4 {[%clk 0:01:36]}  f5 {[%clk 0:01:40]} 20. Nxc5 {[%clk 0:01:31]}  bxc5 {[%clk 0:01:41]} 21. h5 {[%clk 0:01:27]}  g5 {[%clk 0:01:23]} 22. h6+ {[%clk 0:01:25]}  Kh8 {[%clk 0:01:23]} 23. g4 {[%clk 0:01:22]}  fxg4 {[%clk 0:01:13]} 24. Qe4 {[%clk 0:01:21]}  Rb8 {[%clk 0:01:13]} 25. b3 {[%clk 0:01:08]}  a5 {[%clk 0:01:12]} 26. Ke2 {[%clk 0:00:55]}  a4 {[%clk 0:01:09]} 27. Rab1 {[%clk 0:00:52]}  Rb6 {[%clk 0:01:05]} 28. bxa4 {[%clk 0:00:48]}  Rbf6 {[%clk 0:01:05]} 29. Rh2 {[%clk 0:00:48]}  Rf3 {[%clk 0:01:02]} 30. Rb7 {[%clk 0:00:45]}  d3+ {[%clk 0:00:58]} 31. Kd1 {[%clk 0:00:40]}  g3 {[%clk 0:00:41]} 32. Qxe5+ {[%clk 0:00:19]}  R3f6 {[%clk 0:00:41]} 33. Qxg3 {[%clk 0:00:17]}  Qe8 {[%clk 0:00:23]} 34. Qxd3 {[%clk 0:00:15]}  Qxa4+ {[%clk 0:00:17]} 35. Qc2 {[%clk 0:00:15]}  Qe8 {[%clk 0:00:15]} 36. Bc3 {[%clk 0:00:15]}  g4 {[%clk 0:00:11]} 37. Rg2 {[%clk 0:00:14]}  Qh5 {[%clk 0:00:08]} 38. Rxe7 {[%clk 0:00:12]}  g3+ {[%clk 0:00:09]} 39. f3 {[%clk 0:00:11]}  Qh1+ {[%clk 0:00:08]} 40. Re1 {[%clk 0:00:11]}  Qxh6 {[%clk 0:00:08]} 41. Bxf6+ {[%clk 0:00:11]}  Qxf6 {[%clk 0:00:08]} 42. Qb2 {[%clk 0:00:11]}  Qxb2 {[%clk 0:00:06]} 43. Rxb2 {[%clk 0:00:12]}  h5 {[%clk 0:00:06]} 44. Rg2 {[%clk 0:00:11]}  h4 {[%clk 0:00:07]} 45. Rh1 {[%clk 0:00:12]}  Rf4 {[%clk 0:00:07]} 46. Rxg3 {[%clk 0:00:12]}  Rd4+ {[%clk 0:00:08]} 47. Kc2 {[%clk 0:00:11]} 1-0


[Site "https://www.chess.com"]

[Event "Titled Tuesday Blitz May 17 Late 2022"]
[White "Jobava, Baadur"]
[Black "Rasulov, Vugar"]
[WhiteFideId "13601520"]
[BlackFideId "13402390"]
[WhiteElo "2617"]
[BlackElo "2560"]
[Result "1-0"]
[Round "08"]
[TimeControl "180+1"]
[Date "2022.05.17"]
[WhiteClock "0:01:47"]
[BlackClock "0:00:25"]

1. b3 {[%clk 0:03:00]}  d5 {[%clk 0:02:58]} 2. Bb2 {[%clk 0:03:01]}  Bf5 {[%clk 0:02:58]} 3. d3 {[%clk 0:03:02]}  Nf6 {[%clk 0:02:58]} 4. Nd2 {[%clk 0:03:02]}  e6 {[%clk 0:02:58]} 5. g3 {[%clk 0:03:03]}  c6 {[%clk 0:02:57]} 6. Bg2 {[%clk 0:03:04]}  Bc5 {[%clk 0:02:54]} 7. e4 {[%clk 0:03:03]}  Bg6 {[%clk 0:02:45]} 8. Nh3 {[%clk 0:03:01]}  O-O {[%clk 0:02:45]} 9. Nf4 {[%clk 0:02:59]}  a5 {[%clk 0:02:43]} 10. h4 {[%clk 0:02:57]}  dxe4 {[%clk 0:02:33]} 11. dxe4 {[%clk 0:02:54]}  e5 {[%clk 0:02:17]} 12. Bxe5 {[%clk 0:02:47]}  Nbd7 {[%clk 0:02:16]} 13. Bb2 {[%clk 0:02:46]}  Qe7 {[%clk 0:02:02]} 14. O-O {[%clk 0:02:38]}  Rfe8 {[%clk 0:01:53]} 15. h5 {[%clk 0:02:32]}  Bxe4 {[%clk 0:01:52]} 16. Nxe4 {[%clk 0:02:32]}  Nxe4 {[%clk 0:01:49]} 17. Bxe4 {[%clk 0:02:33]}  Rad8 {[%clk 0:01:36]} 18. Qg4 {[%clk 0:02:13]}  Nf6 {[%clk 0:01:26]} 19. Bxf6 {[%clk 0:02:12]}  Qxf6 {[%clk 0:01:27]} 20. Qf5 {[%clk 0:02:12]}  Qxf5 {[%clk 0:01:16]} 21. Bxf5 {[%clk 0:02:12]}  Rd2 {[%clk 0:01:17]} 22. Kg2 {[%clk 0:02:05]}  g6 {[%clk 0:01:00]} 23. hxg6 {[%clk 0:02:06]}  hxg6 {[%clk 0:01:01]} 24. Bd3 {[%clk 0:02:06]}  Kg7 {[%clk 0:00:41]} 25. Rad1 {[%clk 0:02:03]}  Bb4 {[%clk 0:00:41]} 26. Rxd2 {[%clk 0:02:02]}  Bxd2 {[%clk 0:00:42]} 27. Rd1 {[%clk 0:02:01]}  Bc3 {[%clk 0:00:43]} 28. Kf3 {[%clk 0:01:59]}  Re7 {[%clk 0:00:40]} 29. a4 {[%clk 0:01:57]}  f5 {[%clk 0:00:39]} 30. Bc4 {[%clk 0:01:55]}  g5 {[%clk 0:00:39]} 31. Ne6+ {[%clk 0:01:54]}  Kf6 {[%clk 0:00:40]} 32. g4 {[%clk 0:01:54]}  f4 {[%clk 0:00:28]} 33. Rh1 {[%clk 0:01:53]}  b5 {[%clk 0:00:25]} 34. Rh6+ {[%clk 0:01:51]}  Ke5 {[%clk 0:00:25]} 35. Nd8 {[%clk 0:01:47]} 1-0


[Site "https://www.chess.com"]

[Event "Titled Tuesday Blitz May 17 Late 2022"]
[White "Jones, Gawain C B"]
[Black "Bortnyk, Olexandr"]
[WhiteFideId "409561"]
[BlackFideId "14120828"]
[WhiteElo "2657"]
[BlackElo "2723"]
[Result "1-0"]
[Round "08"]
[TimeControl "180+1"]
[Date "2022.05.17"]
[WhiteClock "0:00:03"]
[BlackClock "0:00:05"]

1. e4 {[%clk 0:03:00]}  d6 {[%clk 0:03:00]} 2. d4 {[%clk 0:02:57]}  Nf6 {[%clk 0:03:01]} 3. Nc3 {[%clk 0:02:57]}  e5 {[%clk 0:03:01]} 4. Nge2 {[%clk 0:02:57]}  Nbd7 {[%clk 0:02:54]} 5. h3 {[%clk 0:02:56]}  c6 {[%clk 0:02:52]} 6. g4 {[%clk 0:02:56]}  b5 {[%clk 0:02:53]} 7. a3 {[%clk 0:02:54]}  a5 {[%clk 0:02:50]} 8. Bg2 {[%clk 0:02:39]}  Bb7 {[%clk 0:02:49]} 9. Ng3 {[%clk 0:02:31]}  b4 {[%clk 0:02:47]} 10. axb4 {[%clk 0:02:29]}  axb4 {[%clk 0:02:48]} 11. Rxa8 {[%clk 0:02:29]}  Qxa8 {[%clk 0:02:49]} 12. Nce2 {[%clk 0:02:29]}  h6 {[%clk 0:02:33]} 13. O-O {[%clk 0:02:26]}  c5 {[%clk 0:02:31]} 14. d5 {[%clk 0:02:24]}  g6 {[%clk 0:02:31]} 15. c3 {[%clk 0:02:13]}  bxc3 {[%clk 0:02:25]} 16. Nxc3 {[%clk 0:02:13]}  Be7 {[%clk 0:02:24]} 17. Bd2 {[%clk 0:02:00]}  h5 {[%clk 0:02:16]} 18. g5 {[%clk 0:01:57]}  Nh7 {[%clk 0:02:17]} 19. h4 {[%clk 0:01:55]}  O-O {[%clk 0:02:17]} 20. Bh3 {[%clk 0:01:50]}  Nb6 {[%clk 0:02:13]} 21. Nxh5 {[%clk 0:01:48]}  gxh5 {[%clk 0:01:58]} 22. Bf5 {[%clk 0:01:22]}  Kg7 {[%clk 0:01:01]} 23. Qxh5 {[%clk 0:01:06]}  Rh8 {[%clk 0:00:59]} 24. Qh6+ {[%clk 0:01:04]}  Kg8 {[%clk 0:00:59]} 25. g6 {[%clk 0:01:01]}  Ng5 {[%clk 0:00:41]} 26. gxf7+ {[%clk 0:00:43]}  Nxf7 {[%clk 0:00:42]} 27. Qe6 {[%clk 0:00:43]}  Qf8 {[%clk 0:00:37]} 28. Ra1 {[%clk 0:00:16]}  Bc8 {[%clk 0:00:30]} 29. Qg6+ {[%clk 0:00:16]}  Qg7 {[%clk 0:00:31]} 30. Ra7 {[%clk 0:00:10]}  Bxf5 {[%clk 0:00:16]} 31. exf5 {[%clk 0:00:11]}  Rxh4 {[%clk 0:00:17]} 32. Qxg7+ {[%clk 0:00:08]}  Kxg7 {[%clk 0:00:17]} 33. Rxe7 {[%clk 0:00:08]}  Kf6 {[%clk 0:00:17]} 34. Rb7 {[%clk 0:00:07]}  Rg4+ {[%clk 0:00:11]} 35. Kf1 {[%clk 0:00:06]}  Rb4 {[%clk 0:00:11]} 36. f3 {[%clk 0:00:05]}  Rxb2 {[%clk 0:00:11]} 37. Ne4+ {[%clk 0:00:05]}  Kg7 {[%clk 0:00:06]} 38. Bg5 {[%clk 0:00:03]}  Rb1+ {[%clk 0:00:04]} 39. Kg2 {[%clk 0:00:03]}  Rb2+ {[%clk 0:00:05]} 40. Kh3 {[%clk 0:00:03]}  Nc4 {[%clk 0:00:05]} 41. Bf6+ {[%clk 0:00:03]}  Kh6 {[%clk 0:00:05]} 42. Rxf7 {[%clk 0:00:03]} 1-0


[Site "https://www.chess.com"]

[Event "Titled Tuesday Blitz May 17 Late 2022"]
[White "Kanyamarala, Tarun"]
[Black "Kobo, Ori"]
[WhiteFideId "45004714"]
[BlackFideId "2812320"]
[WhiteElo "2219"]
[BlackElo "2420"]
[Result "0-1"]
[Round "08"]
[TimeControl "180+1"]
[Date "2022.05.17"]
[WhiteClock "0:01:31"]
[BlackClock "0:02:15"]

1. d4 {[%clk 0:03:00]}  Nf6 {[%clk 0:03:00]} 2. c4 {[%clk 0:03:00]}  g6 {[%clk 0:02:59]} 3. h4 {[%clk 0:03:00]}  Bg7 {[%clk 0:02:57]} 4. Nc3 {[%clk 0:02:59]}  O-O {[%clk 0:02:54]} 5. e4 {[%clk 0:02:57]}  d6 {[%clk 0:02:54]} 6. Be2 {[%clk 0:02:49]}  c5 {[%clk 0:02:54]} 7. d5 {[%clk 0:02:46]}  b5 {[%clk 0:02:54]} 8. cxb5 {[%clk 0:02:41]}  a6 {[%clk 0:02:55]} 9. a4 {[%clk 0:02:36]}  axb5 {[%clk 0:02:54]} 10. Bxb5 {[%clk 0:02:37]}  Ba6 {[%clk 0:02:55]} 11. Bxa6 {[%clk 0:02:29]}  Nxa6 {[%clk 0:02:54]} 12. Nge2 {[%clk 0:02:28]}  Qc8 {[%clk 0:02:44]} 13. Ng3 {[%clk 0:02:20]}  Nb4 {[%clk 0:02:37]} 14. h5 {[%clk 0:02:16]}  Qa6 {[%clk 0:02:32]} 15. Qe2 {[%clk 0:01:55]}  Nd3+ {[%clk 0:02:19]} 16. Kf1 {[%clk 0:01:49]}  Rfb8 {[%clk 0:02:18]} 17. hxg6 {[%clk 0:01:34]}  hxg6 {[%clk 0:02:17]} 18. Ra2 {[%clk 0:01:31]}  Nxc1 {[%clk 0:02:15]} 0-1


[Site "https://www.chess.com"]

[Event "Titled Tuesday Blitz May 17 Late 2022"]
[White "Keymer, Vincent"]
[Black "Puranik, Abhimanyu"]
[WhiteFideId "12940690"]
[BlackFideId "5061245"]
[WhiteElo "2548"]
[BlackElo "2520"]
[Result "1-0"]
[Round "08"]
[TimeControl "180+1"]
[Date "2022.05.17"]
[WhiteClock "0:02:27"]
[BlackClock "0:00:46"]

1. Nf3 {[%clk 0:03:00]}  Nf6 {[%clk 0:02:56]} 2. c4 {[%clk 0:03:01]}  c5 {[%clk 0:02:49]} 3. Nc3 {[%clk 0:03:01]}  d5 {[%clk 0:02:46]} 4. cxd5 {[%clk 0:03:02]}  Nxd5 {[%clk 0:02:43]} 5. e4 {[%clk 0:03:02]}  Nb4 {[%clk 0:02:41]} 6. Bc4 {[%clk 0:03:01]}  Nd3+ {[%clk 0:02:40]} 7. Ke2 {[%clk 0:03:01]}  Nf4+ {[%clk 0:02:39]} 8. Kf1 {[%clk 0:03:02]}  Ne6 {[%clk 0:02:37]} 9. h4 {[%clk 0:03:02]}  Nd4 {[%clk 0:02:30]} 10. Nb5 {[%clk 0:03:02]}  e6 {[%clk 0:02:19]} 11. Nbxd4 {[%clk 0:03:00]}  cxd4 {[%clk 0:02:13]} 12. d3 {[%clk 0:03:00]}  Nc6 {[%clk 0:02:08]} 13. Bf4 {[%clk 0:03:00]}  a6 {[%clk 0:02:06]} 14. h5 {[%clk 0:02:55]}  h6 {[%clk 0:02:05]} 15. a3 {[%clk 0:02:50]}  Bd6 {[%clk 0:01:52]} 16. e5 {[%clk 0:02:48]}  Be7 {[%clk 0:01:50]} 17. Rh3 {[%clk 0:02:47]}  b5 {[%clk 0:01:48]} 18. Ba2 {[%clk 0:02:46]}  Bb7 {[%clk 0:01:44]} 19. Rg3 {[%clk 0:02:46]}  Bf8 {[%clk 0:01:27]} 20. Nd2 {[%clk 0:02:46]}  Ne7 {[%clk 0:01:22]} 21. Ne4 {[%clk 0:02:46]}  Nf5 {[%clk 0:01:21]} 22. Rh3 {[%clk 0:02:45]}  Qd7 {[%clk 0:01:18]} 23. g4 {[%clk 0:02:45]}  Bxe4 {[%clk 0:01:11]} 24. dxe4 {[%clk 0:02:45]}  Ne7 {[%clk 0:01:06]} 25. a4 {[%clk 0:02:41]}  bxa4 {[%clk 0:01:02]} 26. Bb1 {[%clk 0:02:33]}  Nc6 {[%clk 0:01:01]} 27. Bc2 {[%clk 0:02:27]}  Be7 {[%clk 0:00:50]} 28. Bxa4 {[%clk 0:02:27]}  O-O {[%clk 0:00:46]} 29. Rc1 {[%clk 0:02:28]}  Rfc8 {[%clk 0:00:46]} 30. Rhc3 {[%clk 0:02:27]} 1-0


[Site "https://www.chess.com"]